{"text_format":"1","workbook":"xlsx","n_sheets":1,"sheets":["conceptos"],"not_rendered":{"charts":0,"images":2,"macros":1,"external_links":0,"defined_names":1,"comments":0,"pivot_tables":0},"unopened":[],"bounds":{"document_bytes":16777216,"sheet_cells":100000,"rows_first":2000,"rows_last":500,"rows_between":2000,"halvings":0,"cell_chars":16384,"cell_head_chars":4096},"cells_cut":0,"cells_raw":0,"read":"whole","date_system":"1900"}

{"sheet":"conceptos","index":0,"n_rows":119,"n_cols":8,"rows_kept":119,"cut":false,"hidden":false,"merged":[[116,0,116,4],[117,0,118,4],[13,0,13,6],[0,2,0,5],[9,2,9,5],[1,2,3,5],[4,2,4,3],[6,2,6,3],[7,2,7,3],[4,4,4,5],[5,4,5,5],[6,4,6,5],[7,4,7,5],[10,2,10,5],[11,2,11,5],[5,1,8,1]]}
[null,"GOBIERNO DEL ESTADO DE JALISCO","LICITACIÓN PÚBLICA ESTATAL"]
[null,"INSTITUTO DE LA INFRAESTRUCTURA FÍSICA EDUCATIVA DEL","INFEJAL-E-REM-S-CON-04299-LP-0229-2020"]
[null,"ESTADO DE JALISCO"]
[]
[null,"DESCRIPCIÓN GENERAL DE LOS TRABAJOS:","FECHA DE INICIO:"]
[null,null,null,"FECHA DE TERMINACIÓN:"]
[null,null,"PLAZO DE EJECUCIÓN:"]
[null,null,"FECHA:"]
[]
[null,"RAZÓN SOCIAL DEL LICITANTE:","NOMBRE, CARGO Y FIRMA DEL LICITANTE:",null,null,null,"DOCUMENTO"]
[]
[]
[]
["PRESUPUESTO DE OBRA"]
[]
["CLAVE","DESCRIPCIÓN","UNIDAD","CANTIDAD","PRECIO UNITARIO ($)","PRECIO UNITARIO ($) CON LETRA","IMPORTE ($) M.N."]
["TRABAJO : SUP-CON-04299","CONSTRUCCIÓN DE CASETA DE VIGILANCIA EN LA UNIVERSIDAD TECNOLÓGICA DE LA ZONA METROPOLITANA DE GUADALAJARA CCT 14EUT0002X, UBICADA EN LA LOCALIDAD SANTA CRUZ DE LAS FLORES, MUNICIPIO DE TLAJOMULCO DE ZÚÑIGA, JALISCO. SEGUNDA ETAPA.",null,null,null,null,{"$f":"TEXT(SUM(G18 + G79 + G88 + G91), \"$ #,##0.00 ;\")","v":"$ 0.00 "}]
[28,"CASETA DE VIGILANCIA",null,null,null,null,{"$f":"TEXT(SUM(G19 + G22 + G28 + G36 + G43 + G48 + G50 + G54 + G60 + G64 + G71), \"$ #,##0.00 ;\")","v":"$ 0.00 "}]
["28.01(310)","MUROS, CADENAS, CASTILLOS Y REPIZONES.            ",null,null,null,null,{"$f":"TEXT(SUM(G20:G21), \"$ #,##0.00 ;\")","v":"$ 0.00 "}]
[312212,"CASTILLO DE CONCRETO F'C=250 KG/CM2, T.M.A.=3/4\", CON SECCION DE 14 X 15 CMS., ARMADA CON 4 VARILLAS DEL # 3 Y ESTRIBOS DEL NO. 2 @ 15 CMS., INCLUYE: ARMADO, COLADO, CURADO, VIBRADO, CIMBRA COMUN, DESCIMBRA, DESPERDICIOS, TRASLAPES, CRUCES DE VARILLAS CON ELEMENTOS TRANSVERSALES, ANDAMIOS, MANO DE OBRA, HERRAMIENTA Y ACARREO DE MATERIALES AL SITIO DE SU UTILIZACION, A CUALQUIER ALTURA.","ML ","17.9000",0,"CERO PESOS 00/100 M.N.",0,205975]
[314032,"MURO DE TABIQUE DE LAMA, DE 14 CMS. DE ESPESOR PROMEDIO, A SOGA, CON TABIQUE DE LAMA 7 X 14 X 28 CMS., ACABADO COMUN, ASENTADO CON MORTERO CEMENTO-ARENA EN PROPORCION 1:3, EN CUALQUIER NIVEL, INCLUYE: TRAZO, NIVELACION, PLOMEO, ANDAMIOS, DESPERDICIOS, MANO DE OBRA, LIMPIEZA Y ACARREO DE MATERIALES AL SITIO DE SU UTILIZACION.","M2 ","19.6600",0,"CERO PESOS 00/100 M.N.",0,205976]
["28.02(319)","ENTREPISOS, CUBIERTA Y ACABADOS DE AZOTEA         ",null,null,null,null,{"$f":"TEXT(SUM(G23:G27), \"$ #,##0.00 ;\")","v":"$ 0.00 "}]
[216582,"SUMINISTRO Y COLOCACION DE GARGOLA DE CONCRETO PREFABRICADA TIPO NAPRESA O SIMILAR, DE 22X40 CMS. PARA DESAGUE PLUVIAL, AMACIZADA CON MORTERO CEM-ARENA DE RIO 1:4, INCLUYE: MATERIALES PARA COLOCACION, ELEVACION, NIVELACION, HERRAMIENTAS, MANO DE OBRA Y ACARREOS AL SITIO DE SU COLOCACION.","PZA","1.0000",0,"CERO PESOS 00/100 M.N.",0,205977]
[322034,"ENTORTADO DE HORMIGON DE CEM-ARENA-JAL (MATERIAL ALIGERANTE) EN PROP. 1:2:6, DE 10.0 CM DE ESPESOR PROMEDIO, INCLUYE: LECHADA DE CEMENTO GRIS CON IMPERMEABILIZANTE INTEGRAL A RAZON DE 1 KG/SACO DE CEMENTO,  MATERIALES, MANO DE OBRA, HERRAMIENTA Y ACARREO DE MATERIALES HASTA EL SITIO DE SU UTILIZACION A CUALQUIER ALTURA. ACABADO PARA RECIBIR IMPERMEABILIZANTE, LADRILLO DE AZOTEA Y/O TEJA","M2 ","8.2500",0,"CERO PESOS 00/100 M.N.",0,205978]
[324022,"ENLADRILLADO DE AZOTEA CON LADRILLO DE BARRO ROJO RECOCIDO, DE 17.0 X 17.0 CM, ASENTADO CON MORTERO CEMENTO-CAL-ARENA 1:2:6 INCLUYE: LECHADA DE CEMENTO GRIS CON IMPERMEABILIZANTE INTEGRAL (1 KG/SACO DE CEMENTO), REMATE ORILLERO (2 HILADAS) Y ACARREO DE MATERIALES AL SITIO DE SU COLOCACION, A CUALQUIER NIVEL.","M2 ","8.2500",0,"CERO PESOS 00/100 M.N.",0,205979]
[324222,"ZAVALETA EN AZOTEA CON LADRILLO DE AZOTEA DE 17 X 17 CMS., ASENTADO CON MORTERO CEMENTO-ARENA DE RIO EN PROPORCION 1:4 Y LECHADEO CON CEMENTO GRIS. INCLUYE: MATERIALES, FESTEGRAL EN MORTERO Y LECHADA A RAZON DE 2 KG POR SACO DE CEMENTO, DESPERDICIOS, ELEVACIONES, LIMPIEZAS, HERRAMIENTAS, MANO DE OBRA Y ACARREO DE MATERIALES AL LUGAR DE SU UTILIZACION.","ML ","11.5000",0,"CERO PESOS 00/100 M.N.",0,205980]
[344142,"SUMINISTRO Y COLOCACION DE IMPERMEABILIZANTE ACRILICO ELASTOMERICO TERMOREFLEJANTE 5 AÑOS, SOBRE ENLADRILLADO. COLOR ROJO TERRACOTA, COLOCANDO UNA CAPA DE IMPERMEABILIZANTE  SIN DILUIR CON RENDIMIENTO DE 0.50 LTS./M2 , DEJANDO SECAR POR UN PERIODO DE 24 HRS. PARA APLICAR UNA 2DA. CAPA DE IMPERMEABILIZANTE SIN DILUIR EN SENTIDO CRUZADO A LA PRIMERA CON RENDIMIENTO DE 0.50 LTS./M2, INCLUYE:   MATERIALES, PREPARACION DE LA SUPERFICIE, IMPRIMACION DE LA SUPERFICIE CON SELLADOR ACRILICO CONCENTRADO DILUIDO EN AGUA A RAZON DE (SELLADOR-AGUA) 1:2, CALAFATEO DE GRIETAS CON CEMENTO ACRILICO, DESPERDICIOS, HERRAMIENTA, LIMPIEZA, MANO DE OBRA ESPECIALIZADA, EQUIPO DE SEGURIDAD Y ACARREO DE MATERIALES AL SITIO DE SU COLOCACION. GANTIA POR ESCRITO DE 5 AÑOS. EN CUALQUIER NIVEL.","M2 ","8.2500",0,"CERO PESOS 00/100 M.N.",0,205981]
["28.03(355)","RECUBRIMIENTOS Y ACABADOS                         ",null,null,null,null,{"$f":"TEXT(SUM(G29:G35), \"$ #,##0.00 ;\")","v":"$ 0.00 "}]
[351007,"ZARPEO DE MUROS, CADENAS, CASTILLO Y  BOVEDA, CON MORTERO DE CEMENTO-ARENA DE RIO-ADHITIVO FESTERGRAL 1:4:0.2, INCLUYE:  ANDAMIOS, ACARREO, ELEVACION DE MATERIAL, HERRAMIENTAS, EQUIPO DE SEGURIDAD Y MANO DE OBRA, A CULQUIER NIVEL.","M2 ","12.5000",0,"CERO PESOS 00/100 M.N.",0,205982]
[355022,"APLANADO DE MUROS Y/O TECHOS CON MORTERO CEMENTO-CAL-ARENA DE RIO EN PROP. 1:2:6 DE 2 CM. DE ESPESOR PROMEDIO, A PLOMO Y REGLA, ACABADO APALILLADO FINO, INCLUYE: MATERIALES, DESPERDICIOS, ANDAMIOS, HERRAMIENTAS, PLOMEO, NIVELACION, REMATES, LIMPIEZA DEL AREA DE TRABAJO Y ACARREO DE MATERIALES AL SITIO DE SU UTILIZACION. A CUALQUIER NIVEL.\n","M2 ","78.2000",0,"CERO PESOS 00/100 M.N.",0,205983]
[357322,"BOQUILLAS EN PUERTAS Y VENTANAS, CON MORTERO CEMENTO-CAL-ARENA 1:2:6, INCLUYE: ANDAMIOS Y ACARREO DE MATERIALES AL SITIO DE SU UTILIZACION.","ML ","33.4500",0,"CERO PESOS 00/100 M.N.",0,205984]
[357352,"FILETES Y BOLEADOS, HECHOS CON MORTERO CEMENTO-CAL-ARENA EN PROPORCION 1:2:6, INCLUYE: DESPERDICIOS, ANDAMIOS Y ACARREO DE MATERIALES AL SITIO DE SU UTILIZACION, A CUALQUIER NIVEL.","ML ","43.7000",0,"CERO PESOS 00/100 M.N.",0,205985]
[358019,"SUMINISTRO Y COLOCACION DE FACHALETA DE COLOR ROJO LADRILLO DE 0.24 X 0.06 X 0.03 CM. ASENTADO CON MORTERO DE CEMENTO BLANCO Y JUNTEADO CON CEMENQUIN DE COLOR, INCLUYE: MATERIALES, HERRAMIENTAS, TRASLADO DE MATERIALES, MANO DE OBRA, CORTES, REMATES Y EMBOQUILLADOS A 45 GRADOS. A CULAQUIER NIVEL.","M2 ","12.5000",0,"CERO PESOS 00/100 M.N.",0,205986]
[358052,"SUMINISTRO Y COLOCACION DE LOSETA CERAMICA PARA MURO ( AZULEJO ), PRENSADO EN SECO, CON RECUBRIMIENTO ESMALTADO DE COLOR, QUEMADO A BICOCCION A TEMPERATURAS DE 1,150 A 1200 °C,  CRAQUELADO, CALIDAD DE PRIMERA, QUE DEBERA CUMPLIR CON LAS SIGUIENTES CARACTERISTICAS TECNICAS: ABSORCION <= 15% , COEFICIENTE DE ESTATICO DE FRICCION >= 0.5, MODULO DE RUPTURA >= 180 KG/CM², RESISTENCIA A LA ADHESION >=50 P.S.I., RESISTENTE AL MANCHADO, RESISTENCIA AL RAYADO >= 4.0 MOHS, RESISTENTE A LOS QUIMICOS   ASENTADO CON PEGAZULEJO Y JUNTEDO CON JUNTEADOR BLANCO,  JUNTAS A HUESO, INCLUYE: TRAZO, CORTE, REMATES, ESCUADRE, DESPERDICIOS, DESPATINADO, EMBOQUILLADOS, CERTIFICADO DE CALIDAD, HERRAMIENTAS, MATERIALES,  MANO DE OBRA, LIMPIEZA Y ACARREO DE MATERIALES AL SITIO DE SU UTILIZACION, A CUALQUIER NIVEL.","M2 ","5.6000",0,"CERO PESOS 00/100 M.N.",0,205987]
[359063,"FORRADO DE MUROS Y/O LOSAS CON PLASTICO LAMINADO MCA. WILSON-DOOR O SIMILAR  (MELAMINA, FORMAICA),  COLOR DE ACUERDO CON INDICACIONES DE SUPERVISION,  ASENTADA CON PEGAMENTO DE CONTACTO INCLUYE: PREPARACION DE LA SUPERFICIE, CORTES, AJUSTES, DESPERDICIOS, LIMPIEZA, PEGAMENTO, MATERIALES MENORES, HERRAMIENTAS, MANO DE OBRA Y  ACARREOS.","M2 ","2.4000",0,"CERO PESOS 00/100 M.N.",0,205988]
["28.04(372)","PISOS                                             ",null,null,null,null,{"$f":"TEXT(SUM(G37:G42), \"$ #,##0.00 ;\")","v":"$ 0.00 "}]
[372242,"FIRME DE CONCRETO F´C= 150 KG/CM2 TMA= 3/4\",  DE 8 CM DE ESPESOR, ACABADO APALILLADO. INCLUYE: TRAZO, NIVELACION, AFINE Y COMPACTACION DEL TERRENO, AGUA, MATERIALES, EXTENDIDO, REGLEADO, CURADO, DESPERDICIOS, HERRAMIENTAS, LIMPIEZA, MANO DE OBRA Y ACARREO DEL MATERIAL AL SITIO DE SU UTILIZACION","M2 ","7.9500",0,"CERO PESOS 00/100 M.N.",0,205989]
[373052,"PISO DE CONCRETO F'C=150 KG/CM², T.M.A. 3/4\", DE 0.12 M. DE ESPESOR, COLADO EN CUADROS NO MAYORES DE 3.00 ML POR LADO, INCLUYE: TRAZO, NIVELACION, AFINE Y COMPACTACION DEL TERRENO, AGUA, DESPERDICIOS, ACARREOS, REGLEADO, ACABADO INTEGRAL RAYADO CON BROCHA DE PELO (SIN UTILIZACION DE PASTA), CIMBRA EN FRONTERAS, DESCIMBRA, COLADO, CURADO, REMATES, ESCALONADO, MUESTREADO, JUNTAS FRIAS CON VOLTEADOR, HERRAMIENTAS Y MANO DE OBRA.","M2 ","3.3500",0,"CERO PESOS 00/100 M.N.",0,205990]
[373512,"CEJA DE CONCRETO F'C=250 KG/CM2 DE 8.00 X 18.00 CMS DE SECCION, ARMADA CON UNA VARILLA DE 3/8\" Y ESTRIBOS DE 1/4\" A CADA 30 CMS. ANCLADOS A LA CADENA DE DESPLANTE. INCLUYE CIMBRA  APARENTE Y  DESCIMBRA.","ML ","10.3500",0,"CERO PESOS 00/100 M.N.",0,205991]
[373766,"FORJADO DE NARIZ DE REMATE EN PISO DE  BANQUETAS, CON 10.0  X  10.0 CM. DE SECCION, INCLUYE SOLO: CIMBRA APARENTE, DESCIMBRA, GOTERO, FORJADO, CHAFLANES, PERFILADO, DESPERDICIOS, HERRAMIENTAS, Y MANO DE OBRA. (NO INCLUYE CONCRETO).","ML ","5.3500",0,"CERO PESOS 00/100 M.N.",0,205992]
[376046,"SUMINISTRO Y COLOCACION DE PISO DE  LOSETA CERAMICA DE 30 X 30 CM., 33 X 33 CM., PRENSADO EN SECO, CON RECUBRIMIENTO ESMALTADO DE COLOR, QUEMADO A MONOCOCCION A TEMPERATURAS DE 1,150 A 1200 °C,  CALIDAD DE PRIMERA, QUE DEBERA CUMPLIR CON LAS SIGUIENTES CARACTERISTICAS TECNICAS: ABSORCION <= 3% , COEFICIENTE DE ESTATICO DE FRICCION >= 0.5, MODULO DE RUPTURA >= 300 KG/CM², PEI, RESISTENCIA A LA ABRASION VISIBLE 1500 CICLOS (PEI IV), RESISTENTE AL MANCHADO, RESISTENCIA AL RAYADO >= 5.0 MOHS, RESISTENTE A LOS QUIMICOS. ASENTADO CON PEGAPISO Y JUNTEDO CON JUNTEADOR DE COLOR,  JUNTAS DE 4 MM. DE ANCHO, MINIMO,  INCLUYE: TRAZO, CORTE, REMATES, ESCUADRE, DESPERDICIOS, DESPATINADO, EMBOQUILLADOS, CERTIFICADO DE CALIDAD, HERRAMIENTAS, MATERIALES,  MANO DE OBRA, LIMPIEZA  Y ACARREO DE MATERIALES AL SITIO DE SU UTILIZACION, A CUALQUIER NIVEL.","M2 ","7.9500",0,"CERO PESOS 00/100 M.N.",0,205993]
[916441,"SUMINISTRO, HABILITADO Y COLOCACION DE DUELA (RECUBRIMIENTO TRAPEZOIDAL) DE ALUMINIO ANODIZADO NATURAL EN PUERTAS, INCLUYE: TRAZO, CORTES, AJUSTES, ELEMENTOS DE FIJACION, MATERIALES MENORES Y DE CONSUMO, DESPERDICIOS, LIMPIEZA DEL AREA, FLETES, EQUIPO, HERRAMIENTAS, MANO DE OBRA Y ACARREOS DE MATERIALES AL SITIO DE SU COLOCACION, EN CUALQUIER NIVEL.","M2 ","2.3500",0,"CERO PESOS 00/100 M.N.",0,205994]
["28.05(382)","ELEMENTOS COMPLEMENTARIOS DE ALBAÑILERIA          ",null,null,null,null,{"$f":"TEXT(SUM(G44:G47), \"$ #,##0.00 ;\")","v":"$ 0.00 "}]
[382028,"LOSA DE CONCRETO F'C=200 KG/CM2 DE 5 CM. DE ESPESOR ARMADA CON VARILLA #3 A CADA 15 CM EN AMBOS SENTIDOS, ACABADO PULIDO. INCLUYE: CIMBRA APARENTE Y DESCIMBRA, DESPERDICIOS, REMATES, GOTERO REMETIDO, NARIZ, HERRAMIENTAS, MANO DE OBRA Y ACARREO DE MATERIAL AL SITIO DE SU UTILIZACION, A CUALQUIER NIVEL.","M2 ","2.4000",0,"CERO PESOS 00/100 M.N.",0,205995]
[383632,"SUMINISTRO Y COLOCACION DE SOPORTE PARA LAVABO O VERTEDERO,  INCLUYE: ELEMENTOS DE FIJACION, NIVELACION, MATERIAL MENORES, LIMPIEZA, HERRAMIENTAS Y MANO DE OBRA.","PZA","1.0000",0,"CERO PESOS 00/100 M.N.",0,205996]
[385018,"SUMINISTRO Y COLOCACION DE PAPELERA CROMADA DE EMPOTRAR MCA. URREA FIG. 3304 O SIMILAR,  INCLUYE: MATERIALES MENORES, ELEMENTOS DE FIJACION, HERRAMIENTAS, MANO DE OBRA Y ACARREO DE MATERIALES AL SITIO DE SU COLOCACION.","PZA","1.0000",0,"CERO PESOS 00/100 M.N.",0,205997]
[385021,"SUMINISTRO Y COLOCACION DE JABONERA CROMADA, MCA. URREA FIG. 3308 DE SOBREPONER, INC: MATERIALES PARA SU FIJACION, FLETES, MANIOBRAS, MANO DE OBRA Y ACARREO DE MATERIALES AL SITIO DE SU COLOCACION.","PZA","1.0000",0,"CERO PESOS 00/100 M.N.",0,205998]
["28.06(390)","CARPINTERIA                                       ",null,null,null,null,{"$f":"TEXT(SUM(G49:G49), \"$ #,##0.00 ;\")","v":"$ 0.00 "}]
[390066,"SUMINISTRO Y COLOCACION DE PUERTA DE TAMBOR CON TRIPLAY DE CAOBILLA DE 6 MM. POR AMBAS CARAS, DE  0.70 A 0.90 MTS. X 2.10 MTS. FORMADA A BASE DE BASTIDOR Y MARCO DE  MADERA DE PINO DE PRIMERA DE  2\"  X  1 1/2\"   Y  PEINAZOS DE 1 1/2\" X 1 1/2\"  A CADA 30 CMS. EN AMBOS SENTIDOS, ACABADO ENTINTADO Y LACA BRILLANTE TRANSPARENTE,  INCLUYE: MARCO Y TOPES DE MADERA,  JAMBAS, CHAPA SCOVILL MODELO A-52-PS,  RESANADOR PARA MADERA, BISAGRA DE LIBRO DE 3\", DESPERDICIOS, MATERIALES MENORES Y DE CONSUMO, HERRAMIENTAS,  ACARREO DE MATERIALES AL SITIO DE SU COLOCACION,  LIMPIEZA DEL AREA DE TRABAJO Y MANO DE OBRA ESPECIALIZADA.","PZA","1.0000",0,"CERO PESOS 00/100 M.N.",0,205999]
["28.07(393)","PINTURA                                           ",null,null,null,null,{"$f":"TEXT(SUM(G51:G53), \"$ #,##0.00 ;\")","v":"$ 0.00 "}]
[393010,"PINTURA VINIL-ACRÍLICA A BASE DE AGUA ACABADO SEMIMATE  LAVABLE, PARA INTERIORES Y EXTERIORES QUE NO DESPRENDA VAPORES TÓXICOS NI OLORES DESAGRADABLES, CON LAS SIGUIENTES CARACTERÍSTICAS ( SÓLIDOS POR PESO 46-52%, SÓLIDOS POR VOLUMEN 30-36%, VISCOSIDAD DE 100-130 UK A 25°C, DENSIDAD > O = 1.2 TON/M3., LAVABILIDAD > O = 4,000 CICLOS, TIEMPO DE SECADO AL TACTO, 30-40 MIN., TIEMPO DE SECADO DURO < O = 8 HRS., CICLO DE CURADO DE 7 DIAS, PH 6-8, RENDIMIENTO EN SUP. LISA 8-10 M2/LT., FINEZA DE MOLIDO (HEGMAN) 3-7 UH.)  EN CADENAS DE DESPLANTE, A UNA CARA, TRABAJO TERMINADO, A DOS MANOS, INCLUYE: MATERIALES MENORES Y DE CONSUMO, PREPARACION DE LA SUPERFICIE, SELLADO DE LA SUPERFICIE, HERRAMIENTAS, LIMPIEZA, MANO DE OBRA Y  ACARREOS DE MATERIALES AL SITIO DE SU UTILIZACION.","ML ","26.8000",0,"CERO PESOS 00/100 M.N.",0,206000]
[393022,"PINTURA VINIL-ACRÍLICA A BASE DE AGUA ACABADO SEMIMATE  LAVABLE, PARA INTERIORES Y EXTERIORES QUE NO DESPRENDA VAPORES TÓXICOS NI OLORES DESAGRADABLES, CON LAS SIGUIENTES CARACTERÍSTICAS ( SÓLIDOS POR PESO 46-52%, SÓLIDOS POR VOLUMEN 30-36%, VISCOSIDAD DE 100-130 UK A 25°C, DENSIDAD > O = 1.2 TON/M3., LAVABILIDAD > O = 4,000 CICLOS, TIEMPO DE SECADO AL TACTO, 30-40 MIN., TIEMPO DE SECADO DURO < O = 8 HRS., CICLO DE CURADO DE 7 DIAS, PH 6-8, RENDIMIENTO EN SUP. LISA 8-10 M2/LT., FINEZA DE MOLIDO (HEGMAN) 3-7 UH.)  EN MUROS APLANADOS DE MEZCLA APALILLADO O PULIDO, TRABAJO TERMINADO, A DOS MANOS, INCLUYE: MATERIALES MENORES Y DE CONSUMO, ANDAMIOS, PREPARACION DE LA SUPERFICIE, SELLADO DE LA SUPERFICIE, HERRAMIENTAS, LIMPIEZA, MANO DE OBRA Y  ACARREOS DE MATERIALES AL SITIO DE SU UTILIZACIÓN.","M2 ","62.2000",0,"CERO PESOS 00/100 M.N.",0,206001]
[393052,"PINTURA VINIL-ACRÍLICA A BASE DE AGUA ACABADO SEMIMATE  LAVABLE, PARA INTERIORES Y EXTERIORES QUE NO DESPRENDA VAPORES TÓXICOS NI OLORES DESAGRADABLES, CON LAS SIGUIENTES CARACTERÍSTICAS ( SÓLIDOS POR PESO 46-52%, SÓLIDOS POR VOLUMEN 30-36%, VISCOSIDAD DE 100-130 UK A 25°C, DENSIDAD > O = 1.2 TON/M3., LAVABILIDAD > O = 4,000 CICLOS, TIEMPO DE SECADO AL TACTO, 30-40 MIN., TIEMPO DE SECADO DURO < O = 8 HRS., CICLO DE CURADO DE 7 DIAS, PH 6-8, RENDIMIENTO EN SUP. LISA 8-10 M2/LT., FINEZA DE MOLIDO (HEGMAN) 3-7 UH.)  EN LOSAS Y ELEMENTOS DE CONCRETO, TRABAJO TERMINADO, A DOS MANOS, INCLUYE: MATERIALES MENORES Y DE CONSUMO, ANDAMIOS, PREPARACION DE LA SUPERFICIE DE CONCRETO, SELLADO DE LA SUPERFICIE, HERRAMIENTAS, LIMPIEZA, MANO DE OBRA Y  EQUIPO DE SEGURIDAD. A CUALQUIER ALTURA.","M2 ","8.7000",0,"CERO PESOS 00/100 M.N.",0,206002]
["28.08(396)","LIMPIEZA                                          ",null,null,null,null,{"$f":"TEXT(SUM(G55:G59), \"$ #,##0.00 ;\")","v":"$ 0.00 "}]
[396012,"LIMPIEZA DE PISOS DE CONCRETO CON AGUA Y ACIDO MURIATICO AL 10%.","M2 ","3.3500",0,"CERO PESOS 00/100 M.N.",0,206003]
[396032,"LIMPIEZA DE RECUBRIMIENTOS VIDRIADOS EN MUROS, CON JABON, AGUA Y ACIDO MURIATICO AL 10 %.","M2 ","5.6000",0,"CERO PESOS 00/100 M.N.",0,206004]
[396042,"LIMPIEZA DE VIDRIOS CON AGUA Y JABON, 2 CARAS.","M2 ","6.7000",0,"CERO PESOS 00/100 M.N.",0,206005]
[396132,"LIMPIEZA EN MUROS DE LADRILLO O BLOCK APARENTE, CON AGUA Y ACIDO MURIATICO AL 10%.","M2 ","12.5000",0,"CERO PESOS 00/100 M.N.",0,206006]
[396222,"LIMPIEZA DE MUEBLES DE BAÑO, CON AGUA Y JABON.","PZA","2.0000",0,"CERO PESOS 00/100 M.N.",0,206007]
["28.09(410)","CANCELERIA, HERRERIA, ALUMINIO, VIDRIOS Y CHAPAS  ",null,null,null,null,{"$f":"TEXT(SUM(G61:G63), \"$ #,##0.00 ;\")","v":"$ 0.00 "}]
[420022,"SUMINISTRO, HABILITADO Y COLOCACION DE CANCELERIA FABRICADA  EN ALUMINIO ANODIZADO NATURAL CON PERFILES COMERCIALES DE 2\" X 1.25\",  MCA. CUPRUM ,  LINEA PANORAMA O SIMILAR, INCLUYE: TRAZO, CORTES, AJUSTES, MATERIALES, CORREDERAS, JALADERAS, OPERADORES, REPISON, SELLADO PERIMETRAL, SILICON, VINIL, HERRAJES, ELEMENTOS DE FIJACION, MATERIALES MENORES Y DE CONSUMO, DESPERDICIOS, HERRAMIENTAS, MANO DE OBRA ESPECIALIZADA, LIMPIEZA, FLETES, EQUIPO Y ACARREO DE MATERIALES AL SITIO DE SU COLOCACION, A CUALQUIER NIVEL.","M2 ","9.0500",0,"CERO PESOS 00/100 M.N.",0,206008]
[424044,"SUMINISTRO Y COLOCACION DE CHAPA PHILLIPS DOBLE MANIJA MOD.  550 A.N., INCLUYE: HERRAMIENTA, MATERIALES, ACARREO DE MATERIAL AL SITIO DE SU UTILIZACION, A CUALQUIER NIVEL Y TODO LO NECESARIO PARA SU CORRECTA INSTALACION Y MANTENIMIENTO.","PZA","1.0000",0,"CERO PESOS 00/100 M.N.",0,206009]
[426010,"SUMINISTRO Y COLOCACION DE CRISTAL FLOTADO DE 6 MM. DE ESPESOR,  ASENTADO CON SILICON, INCLUYE: CORTES, DESPERDICIOS Y ACARREO DE MATERIALES AL SITIO DE SU UTILIZACION A CUALQUIER NIVEL.","M2 ","6.7000",0,"CERO PESOS 00/100 M.N.",0,206010]
["28.10(510)","INSTALACION ELECTRICA EN EDIFICIO                 ",null,null,null,null,{"$f":"TEXT(SUM(G65:G70), \"$ #,##0.00 ;\")","v":"$ 0.00 "}]
[514020,"SALIDA ELECTRICA DE CENTRO AISLADA, OCULTA, CON TUBERIA Y CONEXIONES CONDUIT GALVANIZADA P.G., ETIQUETA VERDE DE AJUSTE DE 13 Y 19 MM. DE DIAMETRO, CABLE VINANEL THW-LS 600 V. A 75° C, 90° C, MARCA CONDUCTORES MONTERREY, (VIAKON-PROTOCOLIZADO), CABLE VINANEL 21 THW-LS 600 V. A 75° C, 90° C, MARCA CONDUMEX (CONDUMEX PROTOCOLIZADO).  CALIBRE 10 Y 12, CAJAS CUADRADAS, CHALUPAS Y TAPAS GALVANIZADAS, INCLUYE: CABLE PARA TIERRA FISICA, MATERIALES MENORES,HERRAMIENTA, MANO DE OBRA ESPECIALIZADA, CONEXIONES, LIMPIEZA DEL AREA DE TRABAJO, PRUEBAS, DESPERDICIOS Y ACARREO DEL MATERIAL AL SITIO DE SU COLOCACION, A CUALQUIER NIVEL.","SAL","2.0000",0,"CERO PESOS 00/100 M.N.",0,206011]
[518019,"SALIDA ELECTRICA PARA CONTACTO DUPLEX POLARIZADO, OCULTA, CON TUBERIA Y CONEXIONES CONDUIT GALVANIZADA P.G., ETIQUETA VERDE DE AJUSTE DE 13 Y 19 MM. DE DIAMETRO,  CABLE VINANEL THW-LS 600 V. A 75° C, 90° C, MARCA CONDUCTORES MONTERREY, (VIAKON-PROTOCOLIZADO), CABLE VINANEL 21 THW-LS 600 V. A 75° C, 90° C, MARCA CONDUMEX (CONDUMEX PROTOCOLIZADO)., CALIBRE 10 Y 12, CAJAS DE REGISTRO  CUADRADAS, CHALUPAS Y TAPAS DE ACERO GALVANIZADO TIPO REFORZADO, CONTACTO QUINZIÑO, TAPA DE ALUMINIO, INCLUYE: TRAZO, RANURAS, CONEXION A TIERRA, MATERIALES MENORES, PRUEBAS, DESPERDICIOS Y ACARREO DEL MATERIAL AL SITIO DE SU COLOCACION, A CUALQUIER NIVEL.","SAL","3.0000",0,"CERO PESOS 00/100 M.N.",0,206012]
[522020,"SALIDA ELECTRICA DE APAGADOR, OCULTA, CON TUBERIA Y CONEXIONES CONDUIT GALVANIZADA P.G., ETIQUETA VERDE DE AJUSTE DE 13 Y 19 MM. DE DIAMETRO, CABLE VINANEL THW-LS 600 V. A 75° C, 90° C, MARCA CONDUCTORES MONTERREY, (VIAKON-PROTOCOLIZADO), CABLE VINANEL 21 THW-LS 600 V. A 75° C, 90° C, MARCA CONDUMEX (CONDUMEX PROTOCOLIZADO). CALIBRE 10 Y 12, CAJAS CUADRADAS, CHALUPAS Y TAPAS GALVANIZADAS, APAGADOR QUINZIÑO, TAPA DE ALUMINIO, INCLUYE: MATERIALES MENORES, PRUEBAS, DESPERDICIOS Y ACARREO DEL MATERIAL AL SITIO DE SU COLOCACION, A CUALQUIER NIVEL.","SAL","2.0000",0,"CERO PESOS 00/100 M.N.",0,206013]
[540305,"SUMINISTRO E INSTALACION DE CENTRO DE CARGA CAT. QO-816L-100,  DE 8 POLOS  100 AMPERES, INCLUYE: MATERIALES, ZAPATAS, MANO DE OBRA, HERRAMIENTAS, ELEMENTOS DE FIJACION, PRUEBAS,  ACARREOS Y MATERIALES MENORES.","PZA","1.0000",0,"CERO PESOS 00/100 M.N.",0,206014]
[550090,"SUMINISTRO E INSTALACION DE LUMINARIO FLUORESCENTE DE SOBREPONER, TIPO ENVOLVENTE, AHORRADOR DE ENERGIA DE 2 X 32 WATTS. FABRICADO EN LAMINA CAL 22, RECUBIERTO CON TRATAMIENTO FOSFATIZADO Y PINTURA ACRILICA O POLIESTER COLOR BLANCO, APLICADA ELECTROSTATICAMENTE Y TERMOENDURECIDA, PARA OBTENER UNA REFLECTANCIA MINIMA DE 90%, CON DIFUSOR ACRILICO PRISMATICO 100% PURO, TIPO ENVOLVENTE, CON UNA LONGITUD DE 120 CM., BALASTRO ELECTRONICO DE BAJA EMISION DE ARMONICAS, PARA OPERAR UNA O DOS LAMPARAS T8 DE 32 WATTS, LA LUMINARIA (COMPLETA) DEBERA CUMPLIR CON LA NORMA ANCE, INCLUYE: COPIA DE CERTIFICACION ANCE ANEXA EN ELTRAMITE DE LA ESTIMACION, FIJACION, CONEXION, MATERIALES MENORES, HERRAMIENTAS, GARANTIAS,  MANO DE OBRA, PRUEBAS Y ACARREOS.","PZA","1.0000",0,"CERO PESOS 00/100 M.N.",0,206015]
[551022,"SUMINISTRO E INSTALACION DE LUMINARIA INCANDESCENTE TIPO ARBOTANTE DE 25 HASTA 100 W., INCLUYE: SOCKET DE BAQUELITA, FOCO (DE 25 A 100 WATTS),  MATERIALES MENORES, PRUEBAS Y ACARREO DE MATERIALES AL SITIO DE SU COLOCACION.","PZA","1.0000",0,"CERO PESOS 00/100 M.N.",0,206016]
["28.11(564)","INSTALACION HIDRAULICA, SANITARIA Y GAS EN EDIF.  ",null,null,null,null,{"$f":"TEXT(SUM(G72:G78), \"$ #,##0.00 ;\")","v":"$ 0.00 "}]
[570012,"SALIDA HIDRAULICA PARA MUEBLE, CON TUBERIA Y CONEXIONES DE COBRE TIPO \"M\" Y VALVULA DE COMPUERTA FIG. 783. (DE CUADRO DE VALVULAS), INCLUYE: MATERIALES MENORES, PRUEBAS, DESPERDICIOS Y ACARREO DE MATERIALES AL SITIO DE SU COLOCACION.","SAL","2.0000",0,"CERO PESOS 00/100 M.N.",0,206022]
[571102,"SALIDA SANITARIA A MUEBLE, CONSISTENTE EN TUBERIA Y CONEXIONES DE PVC DE 2\" Y 4\" DE DIAMETRO, INCLUYE: DESPERDICIO DE TUBERIA, LINEA DE VENTILACION (DESFOGUE),  COPLES, CODOS, TEES, YEES, REDUCCIONES, REGISTRO SANITARIO, MATERIALES MENORES, FLETES Y ACARREO DE LOS MATERIALES AL SITIO DE SU INSTALACION Y PRUEBAS.\n","SAL","3.0000",0,"CERO PESOS 00/100 M.N.",0,206023]
[585010,"SUMINISTRO Y COLOCACION DE TUBO DE P.V.C. SANITARIO (ANGER) SERIE 20, CAMPANA, DE 4\" (100 MM) DIAM., INCLUYE: CONEXIONES, TRAZO, EXCAVACION, CAMA DE ARENA, RELLENO COMPACTADO, DESPERDICIOS, PRUEBAS, PASOS POR CIMENTACION Y ACARREO DE MATERIALES AL SITIO DE SU COLOCACION.","ML ","15.0000",0,"CERO PESOS 00/100 M.N.",0,206024]
[590005,"SUMINISTRO E INSTALACION DE INODORO CON TANQUE BAJO, MARCA CATO O SIMILAR, MOD. JAZMÍN , COLOR BLANCO, INCLUYE: ASIENTO DE PLASTICO, LLAVE ANGULAR FIG. 401, MANGUERA FLEXIBLE COFLEX, TANQUE, ACCESORIOS DE BRONCE PARA EL TANQUE BAJO, MATERIALES MENORES Y DE CONSUMO, ELEMENTOS DE FIJACION, LIMPIEZA, CUELLO DE CERA CON GUIA, PRUEBAS, HERRAMIENTAS, MANO DE OBRA Y ACARREO DE MATERIALES AL SITIO DE SU COLOCACION.","PZA","1.0000",0,"CERO PESOS 00/100 M.N.",0,206025]
[590214,"SUMINISTRO Y COLOCACION DE LAVABO, BLANCO, MARCA AMERICAN STANDARD. LINEA ECONOMICA (MOD. VERACRUZ), INCLUYE: LLAVE ANGULAR FIG. 401, MANGUERA FLEXIBLE, CESPOL CROMADO, LLAVE INDIVIDUAL, CUBRETALADROS, MATERIALES MENORES Y DE CONSUMO, ELEMENTOS DE FIJACION, MANO DE OBRA CALIFICADA, LIMPIEZA DEL AREA DE TRABAJO, HERRAMIENTA, PRUEBAS Y ACARREO DE MATERIALES AL SITIO DE SU COLOCACION.","PZA","1.0000",0,"CERO PESOS 00/100 M.N.",0,206026]
[591410,"SUMINISTRO Y COLOCACION DE VALVULA DE ESFERA (BOLA) EXTREMOS ROSCADOS 3/4\" (19 MM) DE DIAMETRO. MCA URREA, FIG. 550,  INCLUYE: MATERIALES MENORES Y DE CONSUMO, HERRAMIENTAS, PRUEBAS, LIMPIEZA, MANO DE OBRA Y ACARREOS DE MATERIALES AL SITIO DE SU COLOCACION.","PZA","1.0000",0,"CERO PESOS 00/100 M.N.",0,206027]
[592012,"SUMINISTRO Y COLOCACION DE CESPOL BOTE DE P.V.C. CON REJILLA CROMADA. INCLUYE: MATERIALES MENORES Y DE CONSUMO, HERRAMIENTAS, DESPERDICIOS, PRUEBAS, MANO DE OBRA Y ACARREO DE MATERIALES AL SITIO DE SU COLOCACION.","PZA","1.0000",0,"CERO PESOS 00/100 M.N.",0,206028]
["02","RED ELECTRICA",null,null,null,null,{"$f":"TEXT(SUM(G80 + G86), \"$ #,##0.00 ;\")","v":"$ 0.00 "}]
["02.01(511)","INSTALACION ELECTRICA EN OBRA EXTERIOR            ",null,null,null,null,{"$f":"TEXT(SUM(G81:G85), \"$ #,##0.00 ;\")","v":"$ 0.00 "}]
[534004,"SUMINISTRO Y TENDIDO DE TUBO CONDUIT DE P.V.C. PESADO, DE 19 MM DIAM. INCLUYE: CONEXIONES, TRAZO, EXCAVACION, RELLENO, DESPERDICIOS, MATERIALES MENORES, PRUEBAS Y ACARREO AL SITIO DE SU COLOCACION.","ML ","20.0000",0,"CERO PESOS 00/100 M.N.",0,206017]
[536008,"SUMINISTRO Y COLOCACION DE CABLE VINANEL THW-LS 600 V. A 75° C, 90° C, MARCA CONDUCTORES MONTERREY, (VIAKON-PROTOCOLIZADO), CABLE VINANEL 21 THW-LS 600 V. A 75° C, 90° C, MARCA CONDUMEX (CONDUMEX PROTOCOLIZADO). CAL. 10,  INCLUYE: DESPERDICIOS, MATERIALES MENORES, HERRAMIENTA, CONEXIONES, MANO DE OBRA ESPECIALIZADA, LIMPIEZA DEL AREA DE TRABAJO, PRUEBAS Y ACARREO AL SITIO DE SU COLOCACION.","ML ","20.0000",0,"CERO PESOS 00/100 M.N.",0,206018]
[536010,"SUMINISTRO Y COLOCACION DE CABLE VINANEL THW-LS 600 V. A 75° C, 90° C, MARCA CONDUCTORES MONTERREY, (VIAKON-PROTOCOLIZADO), CABLE VINANEL 21 THW-LS 600 V. A 75° C, 90° C, MARCA CONDUMEX (CONDUMEX PROTOCOLIZADO). CAL. 8,  INCLUYE: DESPERDICIOS, MATERIALES MENORES, HERRAMIENTA, CONEXIONES, MANO DE OBRA ESPECIALIZADA, LIMPIEZA DEL AREA DE TRABAJO, PRUEBAS Y ACARREO AL SITIO DE SU COLOCACION.","ML ","40.0000",0,"CERO PESOS 00/100 M.N.",0,206019]
[543020,"SUMINISTRO Y COLOCACION DE INTERRUPTOR TERMOMAGNETICO CON 2 POLOS, DE 15-50 AMPERES, MCA. SQUARE D, CAT. QO. INCLUYE: PRUEBAS, FLETES, MATERIALES MENORES Y ACARREO DE MATERIALES AL SITIO DE SU COLOCACION.","PZA","3.0000",0,"CERO PESOS 00/100 M.N.",0,206020]
[558522,"SUMINISTRO Y COLOCACION DE VARILLA DE TIERRA COOPERWELD, DE 3.00 M X 19 MM DE DIAM.  INCLUYE: UNA  CARGA CADWELD NO. 90, CONECTOR COOPER WELD, SOLDADURA CADWELD NO. 90, PARTE PROPORCIONAL DE MOLDE 161V.,  MATERIALES MENORES, PRUEBAS Y ACARREO AL SITIO DE SU COLOCACION.","PZA","1.0000",0,"CERO PESOS 00/100 M.N.",0,206021]
["02.02(565)","INSTALACION HIDRAULICA, SANITARIA Y GAS EN O. EXT.",null,null,null,null,{"$f":"TEXT(SUM(G87:G87), \"$ #,##0.00 ;\")","v":"$ 0.00 "}]
[543012,"SUMINISTRO Y COLOCACION DE INTERRUPTOR TERMOMAGNETICO DERIVADO CON 1 POLOS, DE 15-60 AMPERES, MCA. SQUARE D, CAT. QO. INCLUYE: PRUEBAS, MATERIALES MENORES, HERRAMIENTAS, MANO DE OBRA ESPECIALIZADA  Y ACARREO DE MATERIALES AL SITIO DE SU COLOCACION.","PZA","2.0000",0,"CERO PESOS 00/100 M.N.",0,206029]
["04","RED HIDRAULICA",null,null,null,null,{"$f":"TEXT((G89), \"$ #,##0.00 ;\")","v":"$ 0.00 "}]
["04.01(565)","INSTALACION HIDRAULICA, SANITARIA Y GAS EN O. EXT.",null,null,null,null,{"$f":"TEXT(SUM(G90:G90), \"$ #,##0.00 ;\")","v":"$ 0.00 "}]
[589313,"SUMINISTRO Y TENDIDO DE TUBERÍA DE CPVC-CTS, PARA CEMENTAR  DE 19 MM DE DIAM. INCLUYE: TRAZO, CONEXIONES (COPLES, CODOS, TEES, NIPLES, ETC), DESPERDICIOS, ENCOFRADO CON CONCRETO F'C=100 KG/CM2 DE 6 X 15 CMS DE SECCION, MATERIALES MENORES Y DE CONSUMO, PRUEBAS, EXCAVACIÓN, RELLENO, HERRAMIENTAS, MANO DE OBRA Y ACARREO DE MATERIALES AL SITIO DE SU COLOCACIÓN.","ML ","15.0000",0,"CERO PESOS 00/100 M.N.",0,206030]
["03","RED SANITARIA",null,null,null,null,{"$f":"TEXT((G92), \"$ #,##0.00 ;\")","v":"$ 0.00 "}]
["03.01(565)","INSTALACION HIDRAULICA, SANITARIA Y GAS EN O. EXT.",null,null,null,null,{"$f":"TEXT(SUM(G93:G94), \"$ #,##0.00 ;\")","v":"$ 0.00 "}]
[596032,"REGISTRO SANITARIO DE 0.60 X 0.40 X 0.80 M, CON MURO DE LADRILLO DE LAMA DE 5.5 X 11.0 X 22.0 CM, ASENTADO CON MORTERO CEMENTO-ARENA 1:3, APLANADO CON MORTERO CEMENTO-ARENA DE RIO 1:3, INCLUYE: TRAZO, EXCAVACIONES, NIVELACION, RELLENO CON MATERIAL PRODUCTO DE EXCAVACION, RETIRO DE MATERIAL EXCEDENTE FUERA DE LA OBRA, TAPA DE CONCRETO F'C=200 KG/CM2, MARCO Y CONTRAMARCO DE ANGULO DE 1 1/2\" X 1/8\", MATERIALES, DESPERDICIOS, HERRAMIENTAS, MANO DE OBRA, LIMPIEZA, RETIRO DE MATERIAL PRODUCTO DE EXCAVACION FUERA DE LA OBRA Y ACARREO DE MATERIALES AL SITIO DE SU UTILIZACION.","PZA","1.0000",0,"CERO PESOS 00/100 M.N.",0,206031]
[596036,"REGISTRO SANITARIO DE 0.60 X 0.60 X 0.80 M, CON MURO DE LADRILLO DE LAMA DE 5.5 X 11.0 X 22.0 CM, ASENTADO CON MORTERO CEMENTO-ARENA 1:3, APLANADO CON MORTERO CEMENTO-ARENA DE RIO 1:3, INCLUYE: TRAZO, EXCAVACIONES, NIVELACION, RELLENO CON MATERIAL PRODUCTO DE EXCAVACION, RETIRO DE MATERIAL EXCEDENTE FUERA DE LA OBRA, TAPA DE CONCRETO F'C=200 KG/CM2, MARCO Y CONTRAMARCO DE ANGULO DE 1 1/2\" X 1/8\", MATERIALES, DESPERDICIOS, HERRAMIENTAS, MANO DE OBRA, LIMPIEZA, RETIRO DE MATERIAL PRODUCTO DE EXCAVACION FUERA DE LA OBRA Y ACARREO DE MATERIALES AL SITIO DE SU UTILIZACION.","PZA","1.0000",0,"CERO PESOS 00/100 M.N.",0,206032]
[null,"RESUMEN DE PARTIDAS"]
["SUP-CON-04299","CONSTRUCCIÓN DE CASETA DE VIGILANCIA EN LA UNIVERSIDAD TECNOLÓGICA DE LA ZONA METROPOLITANA DE GUADALAJARA CCT 14EUT0002X, UBICADA EN LA LOCALIDAD SANTA CRUZ DE LAS FLORES, MUNICIPIO DE TLAJOMULCO DE ZÚÑIGA, JALISCO. SEGUNDA ETAPA.",null,null,null,null,{"$f":"G17","v":"$ 0.00 "}]
[28,"CASETA DE VIGILANCIA",null,null,null,null,{"$f":"G18","v":"$ 0.00 "}]
["28.01(310)","MUROS, CADENAS, CASTILLOS Y REPIZONES.            ",null,null,null,null,{"$f":"G19","v":"$ 0.00 "}]
["28.02(319)","ENTREPISOS, CUBIERTA Y ACABADOS DE AZOTEA         ",null,null,null,null,{"$f":"G22","v":"$ 0.00 "}]
["28.03(355)","RECUBRIMIENTOS Y ACABADOS                         ",null,null,null,null,{"$f":"G28","v":"$ 0.00 "}]
["28.04(372)","PISOS                                             ",null,null,null,null,{"$f":"G36","v":"$ 0.00 "}]
["28.05(382)","ELEMENTOS COMPLEMENTARIOS DE ALBAÑILERIA          ",null,null,null,null,{"$f":"G43","v":"$ 0.00 "}]
["28.06(390)","CARPINTERIA                                       ",null,null,null,null,{"$f":"G48","v":"$ 0.00 "}]
["28.07(393)","PINTURA                                           ",null,null,null,null,{"$f":"G50","v":"$ 0.00 "}]
["28.08(396)","LIMPIEZA                                          ",null,null,null,null,{"$f":"G54","v":"$ 0.00 "}]
["28.09(410)","CANCELERIA, HERRERIA, ALUMINIO, VIDRIOS Y CHAPAS  ",null,null,null,null,{"$f":"G60","v":"$ 0.00 "}]
["28.10(510)","INSTALACION ELECTRICA EN EDIFICIO                 ",null,null,null,null,{"$f":"G64","v":"$ 0.00 "}]
["28.11(564)","INSTALACION HIDRAULICA, SANITARIA Y GAS EN EDIF.  ",null,null,null,null,{"$f":"G71","v":"$ 0.00 "}]
["02","RED ELECTRICA",null,null,null,null,{"$f":"G79","v":"$ 0.00 "}]
["02.01(511)","INSTALACION ELECTRICA EN OBRA EXTERIOR            ",null,null,null,null,{"$f":"G80","v":"$ 0.00 "}]
["02.02(565)","INSTALACION HIDRAULICA, SANITARIA Y GAS EN O. EXT.",null,null,null,null,{"$f":"G86","v":"$ 0.00 "}]
["04","RED HIDRAULICA",null,null,null,null,{"$f":"G88","v":"$ 0.00 "}]
["04.01(565)","INSTALACION HIDRAULICA, SANITARIA Y GAS EN O. EXT.",null,null,null,null,{"$f":"G89","v":"$ 0.00 "}]
["03","RED SANITARIA",null,null,null,null,{"$f":"G91","v":"$ 0.00 "}]
["03.01(565)","INSTALACION HIDRAULICA, SANITARIA Y GAS EN O. EXT.",null,null,null,null,{"$f":"G92","v":"$ 0.00 "}]
[]
["IMPORTE CON LETRA (IVA INCLUIDO)",null,null,null,null,"SUBTOTAL M.N.",{"$f":"TEXT(G17,  \"$ #,##0.00 ;\")","v":"$ 0.00 "}]
[{"$f":"UPPER(CONVERTIRNUM(ROUND( G17 * 1.16, 2)))","v":"CERO PESOS 00/100 M.N."},null,null,null,null,"IVA M.N.",{"$f":"TEXT(ROUND( G17 * 0.16, 2),  \"$ #,##0.00 ;\")","v":"$ 0.00 "}]
[null,null,null,null,null,"TOTAL M.N.",{"$f":"TEXT(ROUND( G17 * 1.16, 2),  \"$ #,##0.00 ;\")","v":"$ 0.00 "}]